bitfinex-derivatives/quotes_ETHF0:USTF0_20250217
["timestamp","ask_amount","ask_price","bid_price","bid_amount"]
[1739786866353,3.2078,2757.4,2756.5,13.65817435]
[1739786866557,3.6249596,2756.6,2756.5,7.65817435]
[1739786866753,3.6249596,2756.6,2756.2,0.0054404]
[1739786866952,3.6249596,2756.3,2756.2,0.0054404]
[1739786867655,6.8327596,2756.3,2756.2,0.0054404]
[1739786868059,6.8327596,2756.3,2756.2,7.72206755]
[1739786868455,3.2078,2756.3,2756.2,13.72206755]
[1739786868769,3.2078,2757.3,2756.9,0.7254]
[1739786868964,3.2078,2757.3,2756.6,3.2078]
[1739786868965,3.6249596,2757.0,2756.6,3.2078]
[1739786869350,3.6249596,2757.0,2756.7,7.77636838]
[1739786869759,3.6249596,2757.0,2756.8,0.72543]
[1739786869956,3.6249596,2757.0,2756.7,8.19552663]
[1739786870162,3.6249596,2757.0,2756.9,8.30237955]
[1739786870364,0.0053734,2757.1,2756.8,7.6902899]
[1739786870662,3.2078,2757.8,2757.4,0.72526]
[1739786870857,3.6249596,2757.6,2757.5,0.72526]
[1739786871158,3.2078,2758.3,2757.5,16.8980899]
[1739786871362,3.6249596,2758.0,2757.9,0.72515]
[1739786871757,3.6249596,2758.0,2757.9,7.80570389]
[1739786871954,6.5018,2758.6,2757.9,11.01350389]
[1739786872158,3.6249596,2758.3,2757.9,3.2078]
[1739786872364,3.6249596,2758.3,2758.1,0.72508]
[1739786872554,3.6249596,2758.3,2758.0,7.82874029]
[1739786872760,3.6249596,2758.1,2757.8,0.0054404]
[1739786872962,3.6249596,2758.1,2757.8,0.7306004]
[1739786873165,3.6249596,2758.1,2757.9,7.82874029]
[1739786873460,3.297,2758.3,2757.9,7.82874029]
[1739786873661,3.93279,2758.6,2757.9,7.82874029]
[1739786873662,3.2078,2758.6,2757.9,7.82874029]
[1739786873861,3.6249596,2758.6,2758.1,3.2078]
[1739786874163,3.6249596,2758.3,2758.2,7.8036239]
[1739786874664,3.2078,2758.9,2758.2,8.23444116]
[1739786875065,3.2078,2758.9,2758.2,7.8036239]
[1739786875266,3.6249596,2758.3,2758.2,7.8036239]
[1739786875474,3.6249596,2758.3,2757.9,7.48154892]
[1739786875668,3.6249596,2758.1,2757.9,0.72514]
[1739786875968,3.6249596,2758.1,2757.9,8.20668892]
[1739786876170,4.02599,2758.5,2757.9,8.20668892]
[1739786876171,3.6249596,2758.0,2757.9,7.48154892]
[1739786876663,3.6249596,2758.0,2757.9,7.91326221]
[1739786876871,3.6249596,2758.0,2757.9,8.63841221]
[1739786877257,3.6249596,2758.0,2757.9,7.91326221]
[1739786877471,3.6249596,2758.0,2757.9,8.63841221]
[1739786877673,3.6249596,2758.0,2757.9,7.91326221]
[1739786878577,3.6249596,2758.0,2757.9,0.43171329]
[1739786878768,3.6249596,2758.0,2757.8,0.0054404]
[1739786878973,6.8327596,2757.9,2757.8,0.0054404]
[1739786879366,7.5579096,2757.9,2757.8,0.0054404]
[1739786879571,6.8327596,2757.9,2757.8,0.0054404]
[1739786879872,3.2078,2758.5,2758.4,0.72502]
[1739786880068,6.5048,2759.2,2758.4,3.2078]
[1739786880270,3.6249596,2758.6,2758.5,0.72499]
[1739786880775,3.6249596,2758.6,2758.5,8.74652658]
[1739786880970,6.4988,2759.5,2758.5,8.02153658]
[1739786881177,3.6249596,2759.3,2759.2,0.72481]
[1739786881572,3.291,2759.7,2759.3,7.56576298]
[1739786881772,3.2078,2759.8,2759.6,0.7247]
[1739786881973,3.2078,2759.8,2759.4,0.43085995]
[1739786882176,3.2078,2760.3,2759.4,9.63865995]
[1739786882377,6.8327596,2760.3,2759.7,10.77356298]
[1739786882684,6.8327596,2760.3,2760.0,4.23294182]
[1739786882871,3.2078,2760.6,2760.2,0.72452]
[1739786883071,6.8327596,2760.6,2760.1,8.01027432]
[1739786883374,3.2078,2761.6,2760.4,4.23294182]
[1739786883568,2.23539433,2761.2,2760.8,4.23294182]
[1739786883969,2.23539433,2761.2,2760.9,7.82143457]
[1739786884169,0.72409,2762.0,2761.1,3.2078]
[1739786884170,3.2078,2762.0,2761.1,3.2078]
[1739786884365,2.23539433,2761.8,2761.2,0.72426]
[1739786884577,2.23539433,2761.5,2761.4,3.2078]
[1739786884774,3.2078,2762.4,2761.4,10.76874182]
[1739786884975,2.23539433,2761.6,2761.5,10.86291521]
[1739786885180,3.2078,2762.1,2761.5,7.65511521]
[1739786885380,2.23539433,2761.9,2761.5,7.65511521]
[1739786885573,3.2078,2762.1,2761.5,3.2078]
[1739786885873,3.2078,2762.7,2761.8,7.44074182]
[1739786886070,2.23539433,2762.1,2761.8,7.44074182]
[1739786886273,3.2078,2763.0,2762.0,0.72406]
[1739786886476,2.23539433,2762.3,2762.0,3.21323036]
[1739786886782,2.23539433,2762.5,2762.2,0.72402]
[1739786887076,2.23539433,2762.7,2762.3,3.2078]
[1739786887265,2.23539433,2762.7,2762.3,10.99809705]
[1739786887496,2.23539433,2762.4,2762.3,3.2078]
[1739786887794,2.23539433,2762.4,2762.3,10.91511184]
[1739786888397,2.23539433,2762.4,2762.0,0.00543036]
[1739786888583,2.23539433,2762.1,2762.0,0.00543036]
[1739786889093,2.23539433,2762.1,2762.0,7.66788677]
[1739786889691,3.356,2762.6,2762.0,10.87568677]
[1739786889887,2.23539433,2762.4,2762.0,10.87568677]
[1739786890087,2.23539433,2762.9,2762.3,3.2078]
[1739786890395,6.5648,2764.3,2762.7,7.44074182]
[1739786890596,2.23539433,2764.9,2764.1,4.23294182]
[1739786890894,3.2078,2765.2,2764.5,7.44074182]
[1739786891100,0.29094201,2766.5,2765.1,3.2078]
[1739786891101,3.2078,2766.4,2765.1,3.2078]
[1739786891398,3.2078,2766.1,2765.4,3.2078]
[1739786891594,3.2078,2766.5,2765.6,4.23294182]
[1739786891796,2.23539433,2766.3,2765.9,3.2078]
[1739786891988,2.23539433,2766.3,2765.5,11.43188658]
[1739786891989,2.23539433,2766.0,2765.8,0.00543036]
[1739786892195,3.2078,2766.3,2765.8,0.00543036]
[1739786892398,2.23539433,2766.0,2765.8,0.00543036]
[1739786892692,2.23539433,2766.2,2765.9,7.7835328]
[1739786892901,3.2078,2766.3,2765.9,11.87287439]
[1739786893194,3.2078,2766.3,2765.8,0.00543036]
[1739786893195,5.44319433,2766.0,2765.8,0.00543036]
[1739786893491,5.66939433,2765.9,2764.7,3.2078]
[1739786893698,2.23539433,2765.6,2765.0,3.2078]
[1739786893897,2.23539433,2765.8,2765.0,3.2078]
[1739786894094,0.00539688,2766.2,2765.3,3.2078]
[1739786894394,2.23539433,2765.5,2765.0,3.2078]
[1739786894593,3.442,2765.7,2765.4,7.70175106]
[1739786894896,0.00539688,2766.2,2763.7,3.2078]
[1739786894897,3.2078,2765.5,2763.7,3.2078]
[1739786895195,2.22996397,2764.0,2763.9,7.70175106]
[1739786895390,0.72342,2764.5,2763.9,7.70175106]
[1739786895704,0.72373,2763.4,2762.5,3.2078]
[1739786895903,3.2078,2763.7,2762.5,3.2078]
[1739786896195,3.2078,2763.4,2762.3,7.63655242]
[1739786896394,2.22996397,2762.7,2762.5,3.2078]
[1739786896698,3.2078,2763.4,2762.6,0.00543036]
[1739786897001,3.2078,2764.6,2763.3,3.2078]
[1739786897203,6.6698,2764.6,2763.7,3.2078]
[1739786897410,2.22996397,2763.8,2763.7,3.2078]
[1739786897700,2.22996397,2763.8,2763.4,7.69093117]
[1739786897701,2.22996397,2763.8,2763.3,7.61455272]
[1739786897902,3.457,2764.0,2763.2,3.2078]
[1739786898201,2.22996397,2763.3,2763.2,10.82235272]
[1739786898394,5.68696397,2764.0,2763.3,0.00543036]
[1739786898602,2.22996397,2764.0,2763.7,3.2078]
[1739786898998,2.22996397,2764.0,2763.8,7.7584403]
[1739786899896,0.00543036,2764.4,2763.8,13.7584403]
[1739786900102,0.00543036,2764.4,2764.2,3.2078]
[1739786900496,1.80718,2766.7,2764.2,3.2078]
[1739786900497,3.2078,2765.4,2764.5,0.7234]
[1739786900696,3.2078,2765.4,2765.0,3.2078]
[1739786900697,2.22996397,2765.4,2765.0,3.2078]
[1739786900903,2.22996397,2765.2,2765.0,3.2078]
[1739786901102,2.22996397,2765.1,2764.7,3.2078]
[1739786901399,2.22996397,2764.8,2764.3,3.7685]
[1739786901702,0.00539688,2764.8,2764.7,0.72335]
[1739786902105,3.93095,2765.6,2764.7,13.81092285]
[1739786902408,3.93095,2765.6,2764.7,7.81092285]
[1739786902409,2.22996397,2764.8,2764.7,7.81092285]
[1739786903701,4.23294182,2766.2,2764.3,3.77393036]
[1739786903702,3.457,2765.5,2764.6,3.2078]
[1739786903900,2.22996397,2765.2,2764.9,3.2078]
[1739786904104,2.22996397,2765.3,2764.9,3.2078]
[1739786904301,3.2078,2765.7,2764.9,3.2078]
[1739786904302,0.72314,2765.6,2765.0,7.77327839]
[1739786904510,2.22996397,2765.1,2765.0,7.77327839]
[1739786905199,3.2078,2765.7,2765.0,7.77327839]
[1739786905406,2.22996397,2765.1,2765.0,7.77327839]
[1739786905902,2.22996397,2765.1,2765.0,10.98107839]
[1739786906509,2.22996397,2765.1,2764.3,3.21323036]
[1739786906711,2.22996397,2764.4,2764.3,0.00543036]
[1739786907103,2.22996397,2764.4,2764.3,7.710072]
[1739786907404,3.466,2765.3,2764.8,0.72334]
[1739786907596,2.22996397,2764.7,2764.6,3.2078]
[1739786907997,2.22996397,2764.7,2764.6,10.76993622]
[1739786908404,2.22996397,2764.7,2764.4,3.2078]
[1739786908606,3.474,2765.0,2764.4,3.2078]
[1739786908805,2.22996397,2764.7,2764.6,0.72339]
[1739786909000,2.22996397,2765.2,2764.8,0.72333]
[1739786909203,2.22996397,2765.2,2765.0,3.2078]
[1739786909712,2.22996397,2765.2,2765.1,7.73051444]
[1739786910207,2.95320397,2765.2,2765.1,7.73051444]
[1739786910506,2.22996397,2765.2,2765.1,7.73051444]
[1739786911404,0.72326,2765.1,2765.0,3.2078]
[1739786911604,3.2078,2765.1,2764.3,0.00543036]
[1739786912002,3.471,2765.1,2764.6,3.2078]
[1739786912209,3.471,2765.1,2764.6,3.93119]
[1739786912405,3.471,2765.1,2764.7,7.46178201]
[1739786912811,3.2078,2765.4,2765.3,0.72321]
[1739786913110,3.2078,2765.4,2764.6,7.44074182]
[1739786913408,3.2078,2765.4,2765.3,7.74447552]
[1739786913607,3.461,2765.7,2765.0,7.74447552]
[1739786913608,0.72315,2765.6,2765.0,7.74447552]
[1739786913809,3.461,2765.7,2765.3,7.56194015]
[1739786914012,0.72312,2765.7,2765.1,7.56194015]
[1739786914312,6.6638,2765.8,2765.3,7.56194015]
[1739786914809,6.6638,2765.8,2764.9,3.2078]
[1739786915309,6.6638,2765.8,2765.0,7.73144613]
[1739786915507,3.2078,2765.4,2764.3,0.00543036]
[1739786915710,3.2078,2765.1,2764.3,0.00543036]
[1739786915905,3.2078,2764.8,2764.6,7.53886769]
[1739786916113,3.2078,2764.8,2764.3,0.00543036]
[1739786916305,3.93125,2764.4,2764.3,0.00543036]
[1739786916507,6.6528,2764.4,2763.6,3.2078]
[1739786916806,3.2078,2763.9,2763.7,7.49464466]
[1739786917114,6.6468,2763.9,2763.0,10.70244466]
[1739786917708,0.00543036,2763.7,2763.2,0.00543036]
[1739786918211,3.43643036,2763.7,2763.3,7.50900557]
[1739786918910,3.2078,2763.6,2763.3,7.50900557]
[1739786919505,3.2078,2763.6,2763.2,0.00543036]
[1739786919815,3.2078,2763.6,2763.3,7.77908899]
[1739786920002,0.00543036,2763.7,2763.3,7.77908899]
[1739786920310,3.21323036,2763.7,2763.3,7.77908899]
[1739786920510,0.00543036,2763.7,2763.6,3.2078]
[1739786920715,3.2078,2764.3,2763.7,0.72361]
[1739786921010,3.2078,2764.3,2763.8,7.61716996]
[1739786921407,3.2078,2764.3,2763.7,11.85011178]
[1739786921802,3.2078,2764.3,2763.7,4.23294182]
[1739786922002,3.2078,2764.6,2764.1,4.23294182]
[1739786922213,3.2078,2764.6,2763.9,3.2078]
[1739786922214,3.2078,2764.6,2763.9,4.285]
[1739786922517,0.72342,2764.5,2764.2,7.42507173]
[1739786922810,3.2078,2764.6,2763.9,3.2078]
[1739786923011,0.72351,2764.2,2763.9,3.2078]
[1739786923209,0.72351,2764.2,2763.5,0.72367]
[1739786923210,0.72352,2764.1,2764.0,7.52440523]
[1739786923605,0.72352,2764.1,2763.6,7.60954557]
[1739786923606,0.72354,2764.1,2763.6,7.60954557]
[1739786925212,0.72332,2764.9,2764.4,3.2078]
[1739786925512,3.2078,2764.6,2764.0,3.2078]
[1739786925706,0.72341,2764.6,2764.3,7.41066155]
[1739786925907,3.2078,2764.7,2764.3,7.41066155]
[1739786926111,3.422,2764.6,2763.6,3.2078]
[1739786926306,5.0161,2764.9,2763.6,3.2078]
[1739786926509,5.0161,2764.9,2764.1,7.41066155]
[1739786926510,0.72352,2764.2,2764.1,7.41066155]
[1739786926707,3.423,2764.3,2763.6,10.61846155]
[1739786926907,3.42,2764.2,2763.1,5.30404182]
[1739786927119,3.42,2764.2,2763.3,3.2078]
[1739786927120,2.33166093,2764.2,2763.3,3.2078]
[1739786927414,3.2078,2764.3,2763.7,7.74531633]
[1739786927710,3.424,2764.2,2763.4,7.74531633]
[1739786927906,3.424,2764.2,2763.3,7.44074182]
[1739786928116,3.2078,2764.0,2763.8,7.48917553]
[1739786928311,3.424,2764.2,2763.4,7.48917553]
[1739786928519,3.424,2764.2,2763.3,7.44074182]
[1739786928912,3.2078,2763.9,2763.4,7.55431061]
[1739786929614,3.2078,2763.9,2763.3,7.51979925]
[1739786929808,0.72369,2763.5,2763.0,3.2078]
[1739786930017,3.93149,2763.5,2763.0,3.2078]
[1739786930215,3.442,2763.6,2763.0,3.2078]
[1739786930524,3.2078,2763.9,2763.3,10.72759925]
[1739786931015,6.6468,2764.0,2763.3,10.72759925]
[1739786931618,6.6468,2764.0,2763.3,7.51979925]
[1739786932019,3.432,2763.9,2763.3,7.51979925]
[1739786932518,3.432,2763.9,2763.3,8.24351925]
[1739786932710,3.428,2764.4,2763.6,7.44074182]
[1739786933120,3.428,2764.4,2763.9,3.2078]
[1739786933314,3.428,2764.4,2764.0,0.72353]
[1739786933515,6.6308,2764.7,2764.0,7.39112527]
[1739786934017,3.2078,2764.4,2764.0,7.39112527]
[1739786934217,0.72342,2764.5,2764.0,7.39112527]
[1739786934410,3.423,2764.7,2763.8,10.935512]
[1739786934612,3.2078,2764.3,2764.0,7.59168508]
[1739786934923,3.419,2764.2,2763.9,7.59168508]
[1739786935114,0.72353,2764.1,2763.8,7.59168508]
[1739786935319,0.72359,2763.9,2763.6,4.23294182]
[1739786935820,0.72359,2763.9,2763.8,7.55847661]
[1739786936026,5.22776,2764.2,2763.2,4.23837218]
[1739786936027,3.2078,2764.0,2763.2,4.23837218]
[1739786936228,3.2078,2764.0,2763.4,7.55847661]
[1739786936525,0.72371,2763.4,2763.2,4.23837218]
[1739786936830,0.72369,2763.5,2763.3,7.81747481]
[1739786937019,0.72371,2763.4,2763.3,7.81747481]
[1739786937427,0.72373,2763.3,2763.2,0.00543036]
[1739786937623,3.2078,2763.4,2763.2,0.00543036]
[1739786937928,3.403,2763.7,2763.2,0.00543036]
[1739786938226,0.72373,2763.3,2763.2,0.00543036]
[1739786938828,3.2078,2763.3,2762.5,4.23294182]
[1739786939031,3.2078,2763.0,2762.5,4.23294182]
[1739786939223,6.6008,2763.0,2762.7,7.79792409]
[1739786939426,6.6008,2763.0,2761.9,0.5357]
[1739786939427,6.6008,2763.0,2762.3,4.80014182]
[1739786939726,3.392,2763.0,2762.5,7.79792409]
[1739786939920,0.72385,2762.9,2762.4,0.00543036]
[1739786940121,0.00543036,2762.9,2762.5,7.45396249]
[1739786940520,0.72389,2762.7,2762.5,7.45396249]
[1739786940722,0.00543036,2762.9,2762.4,0.00543036]
[1739786940723,3.2078,2762.8,2762.4,0.00543036]
[1739786940930,0.00543036,2762.9,2762.7,4.23294182]
[1739786941329,3.93707036,2762.9,2762.8,7.80096326]
[1739786941636,0.72394,2762.5,2762.4,0.00543036]
[1739786941933,4.12394,2762.5,2762.4,0.00543036]
[1739786942529,7.33174,2762.5,2762.4,0.00543036]
[1739786942727,6.6078,2762.5,2762.4,0.00543036]
[1739786942924,3.4,2762.5,2762.4,0.00543036]
[1739786943123,3.2078,2762.8,2762.4,7.58732511]
[1739786943324,0.72391,2762.7,2762.4,7.58732511]
[1739786943532,3.2078,2762.8,2762.4,7.58732511]
[1739786943927,0.00543036,2762.9,2762.8,0.72386]
[1739786944328,0.00543036,2762.9,2762.8,8.48095626]
[1739786944525,0.00543036,2762.9,2762.8,7.75709626]
[1739786944727,0.00543036,2762.9,2762.8,8.48095626]
[1739786944929,0.00543036,2762.9,2762.8,3.2078]
[1739786945130,0.00543036,2762.9,2762.8,10.91201202]
[1739786945321,0.00543036,2762.9,2762.8,7.70421202]
[1739786945528,23.2628,2764.1,2763.6,0.72364]
[1739786945727,3.2078,2764.1,2763.5,3.2078]
[1739786945922,0.7236,2763.9,2763.5,3.2078]
[1739786946232,3.2078,2764.1,2763.6,7.39373215]
[1739786946233,0.72361,2763.8,2763.6,7.39373215]
[1739786946426,1.29967,2764.0,2763.6,7.39373215]
[1739786946623,0.72362,2763.8,2763.6,7.39373215]
[1739786946824,6.5968,2763.7,2762.7,1.6322]
[1739786947021,3.389,2763.7,2762.7,1.0829]
[1739786947227,0.72376,2763.2,2762.8,7.7691741]
[1739786947421,4.11173,2763.3,2762.8,8.4930341]
[1739786947726,3.388,2763.3,2762.8,7.7691741]
[1739786947927,0.72378,2763.2,2762.8,7.7691741]
[1739786948133,3.2078,2763.5,2762.9,3.2078]
[1739786948321,3.382,2763.8,2763.3,3.2078]
[1739786948525,3.382,2763.8,2763.7,0.72363]
[1739786948729,3.2078,2764.2,2763.4,7.40587951]
[1739786948927,6.5888,2764.2,2763.4,7.40587951]
[1739786949128,3.7608,2764.5,2763.7,10.61367951]
[1739786949326,6.5848,2764.5,2763.7,5.01686]
[1739786949631,6.5848,2764.5,2763.8,7.41130987]
[1739786950135,6.5808,2764.5,2763.8,7.41130987]
[1739786950333,0.72346,2764.4,2763.8,8.13489987]
[1739786950637,3.93138,2763.9,2763.8,0.00543036]
[1739786950831,7.30738,2763.9,2763.8,0.00543036]
[1739786951133,12.5838,2763.9,2762.7,3.7326]
[1739786951338,12.5838,2763.9,2763.0,3.2078]
[1739786951339,3.376,2763.9,2763.0,3.2078]
[1739786951534,0.72372,2763.4,2763.0,3.2078]
[1739786951832,4.10172,2763.4,2763.0,3.2078]
[1739786952033,3.378,2763.4,2763.0,3.2078]
[1739786952240,3.378,2763.4,2762.9,0.00543036]
[1739786952241,0.72381,2763.0,2762.9,0.00543036]
[1739786952534,3.2078,2763.0,2762.3,7.58520409]
[1739786952730,0.72397,2762.4,2762.3,7.58520409]
[1739786953034,4.09697,2762.4,2761.6,7.44074182]
[1739786953236,7.30477,2762.4,2761.6,8.16491182]
[1739786953441,0.72405,2762.1,2761.7,7.44475334]
[1739786953633,3.2078,2762.2,2761.7,7.44475334]
[1739786953832,3.93183,2762.2,2761.7,7.44475334]
[1739786954032,3.2078,2762.2,2761.7,7.44475334]
[1739786954240,3.373,2762.4,2761.7,7.44475334]
[1739786954541,3.2078,2762.2,2761.7,7.44475334]
[1739786954936,3.2078,2762.2,2761.6,3.21323036]
[1739786955439,3.373,2762.4,2761.6,3.21323036]
[1739786955440,0.72415,2761.7,2761.6,0.00543036]
[1739786955634,3.352,2761.7,2760.9,3.2078]
[1739786955939,0.72426,2761.3,2761.0,7.40756217]
[1739786956239,3.349,2761.2,2760.5,3.2078]
[1739786956440,3.348,2761.1,2760.2,3.2078]
[1739786956639,3.348,2761.0,2760.6,7.40756217]
[1739786956937,3.348,2761.0,2760.4,0.00543036]
[1739786956938,3.2078,2760.7,2760.4,0.00543036]
[1739786957437,0.72452,2760.4,2759.4,4.3239]
[1739786957636,3.2078,2760.1,2759.4,4.3239]
[1739786957832,3.381,2760.0,2759.5,7.65000693]
[1739786958532,3.381,2760.0,2759.1,3.2078]
[1739786958533,6.5888,2760.0,2759.1,3.2078]
[1739786958731,6.5888,2760.0,2759.5,0.00543036]
[1739786959647,3.381,2759.9,2759.5,0.00543036]
[1739786960033,3.376,2759.8,2759.5,0.00543036]
[1739786960340,3.2078,2759.7,2759.5,0.00543036]
[1739786961045,3.9325,2759.7,2759.5,0.00543036]
[1739786961247,3.2078,2759.7,2759.5,0.00543036]
[1739786962437,3.368,2759.6,2759.5,0.00543036]
[1739786963529,3.2078,2760.0,2759.5,0.00543036]
[1739786963733,3.36,2759.9,2759.5,0.00543036]
[1739786964337,0.7247,2759.6,2759.5,0.00543036]
[1739786965040,3.36,2759.9,2759.5,0.00543036]
[1739786965041,3.8869,2759.9,2759.5,0.00543036]
[1739786965448,4.61153,2759.9,2759.5,0.00543036]
[1739786965739,3.8869,2759.9,2759.5,0.00543036]
[1739786965937,4.61154,2759.9,2759.5,0.00543036]
[1739786966241,3.344,2759.8,2759.5,0.00543036]
[1739786966640,3.352,2759.7,2759.5,0.00543036]
[1739786967041,13.2078,2760.0,2759.6,0.7247]
[1739786967240,13.2078,2760.0,2759.6,7.6974341]
[1739786967241,10.0,2760.0,2759.6,7.6974341]
[1739786967438,3.345,2759.9,2759.8,0.72465]
[1739786968039,9.1279,2760.0,2759.8,7.6666836]
[1739786968241,8.00859288,2760.0,2759.9,0.72463]
[1739786968440,6.26439288,2760.0,2759.9,0.72463]
[1739786968636,5.39229288,2760.0,2759.9,8.3913136]
[1739786968845,4.72089288,2760.0,2759.9,8.3913136]
[1739786970443,0.00543036,2760.9,2760.8,0.72439]
[1739786970643,0.00543036,2760.9,2760.8,3.93219]
[1739786970850,0.00543036,2760.9,2760.8,11.60423621]
[1739786971249,0.00543036,2760.9,2760.8,7.67204621]
[1739786971449,0.00543036,2760.9,2760.5,3.2078]
[1739786971743,3.328,2760.8,2760.6,8.29952259]
[1739786971947,3.328,2760.8,2760.6,7.57508259]
[1739786972151,4.0524,2760.8,2760.5,3.2078]
[1739786972346,3.2078,2760.6,2759.9,3.2078]
[1739786972645,0.72448,2760.5,2759.9,3.2078]
[1739786972951,3.2078,2760.6,2759.9,3.93242]
[1739786973150,0.72449,2760.5,2759.9,3.93242]
[1739786973351,3.2078,2760.6,2759.9,3.2078]
[1739786973539,4.4508,2760.8,2760.0,7.50984396]
[1739786973945,0.72451,2760.4,2760.0,7.50984396]
[1739786974146,3.323,2760.3,2760.0,7.50984396]
[1739786974851,4.04752,2760.3,2760.0,7.50984396]
[1739786975047,3.323,2760.3,2760.0,7.50984396]
[1739786975248,3.323,2760.3,2759.5,3.21323036]
[1739786975249,6.5308,2760.3,2759.5,3.21323036]
[1739786975445,6.5308,2760.3,2759.7,0.72974235]
[1739786975646,3.323,2760.3,2760.0,0.7246]
[1739786975846,4.04752,2760.3,2759.8,7.7387443]
[1739786976047,4.04754,2760.3,2759.8,7.7387443]
[1739786976255,3.2078,2760.4,2759.8,7.7387443]
[1739786976549,3.309,2760.3,2759.8,10.9465443]
[1739786976751,3.309,2760.3,2760.1,0.72457]
[1739786976951,3.309,2760.3,2759.8,10.9465443]
[1739786977150,3.2078,2760.4,2759.8,10.9465443]
[1739786977452,3.303,2760.3,2759.8,11.6711843]
[1739786977648,0.72456,2760.2,2759.8,10.9465443]
[1739786977849,3.303,2760.3,2759.8,10.9465443]
[1739786978155,3.312,2760.2,2760.1,0.72456]
[1739786978344,3.312,2760.2,2759.8,10.9465443]
[1739786978550,20.44983036,2760.9,2760.4,3.2078]
[1739786978551,0.00543036,2760.9,2760.4,3.2078]
[1739786978751,3.2078,2763.1,2760.8,7.44074182]
[1739786978956,1.1159,2763.3,2762.5,3.2078]
[1739786979156,1.4783,2763.3,2762.5,3.2078]
[1739786979350,0.5421,2763.3,2762.9,3.2078]
[1739786980160,1.26585,2763.3,2762.8,0.00543036]
[1739786980349,0.5421,2763.3,2762.8,0.00543036]
[1739786981359,3.2078,2763.1,2762.8,0.00543036]
[1739786981662,3.2078,2763.1,2762.1,7.44074182]
[1739786981663,3.2078,2763.1,2762.1,3.2078]
[1739786981862,3.2078,2763.0,2761.7,3.2078]
[1739786982065,3.93177,2762.5,2761.7,3.2078]
[1739786982258,4.12597,2762.4,2761.7,3.2078]
[1739786982460,3.402,2762.4,2761.7,3.2078]
[1739786982856,3.402,2762.4,2761.8,0.00543036]
[1739786983164,3.2078,2762.5,2761.8,7.74754996]
[1739786983365,6.5998,2762.5,2761.8,7.74754996]
[1739786983568,3.393,2762.5,2761.8,7.74754996]
[1739786983764,4.11696,2762.5,2761.8,7.74754996]
[1739786984065,3.393,2762.5,2761.8,7.74754996]
[1739786984266,3.393,2762.5,2762.0,3.2078]
[1739786984759,3.388,2762.5,2762.3,3.2078]
[1739786985264,3.383,2762.6,2762.3,3.2078]
[1739786985463,3.2078,2763.1,2762.3,3.2078]
[1739786985760,3.38,2763.0,2762.4,7.63135448]
[1739786986159,3.38,2763.0,2762.5,0.72393]
[1739786986569,3.38,2763.0,2762.6,7.53911815]
[1739786986862,3.38,2763.0,2762.3,3.2078]
[1739786987066,3.38,2763.0,2762.7,0.72388]
[1739786987258,3.38,2763.0,2762.6,3.2078]
[1739786987567,6.5728,2763.1,2762.8,0.72385]
[1739786987767,6.5728,2763.1,2762.7,8.22562563]
[1739786987968,6.5728,2763.1,2762.7,7.50174563]
[1739786988568,0.00543036,2763.4,2762.7,7.50174563]
[1739786988758,4.08314036,2763.4,2762.9,3.2078]
[1739786988959,3.35943036,2763.4,2762.9,3.2078]
[1739786989164,3.35943036,2763.4,2763.0,7.5198571]
[1739786989360,3.35943036,2763.4,2762.9,3.2078]
[1739786989563,4.08314036,2763.4,2762.9,3.2078]
[1739786990068,0.00543036,2763.4,2762.9,3.2078]
[1739786990268,3.34,2763.3,2762.9,3.2078]
[1739786990563,0.72378,2763.2,2762.9,3.2078]
[1739786990769,3.34,2763.3,2762.9,3.2078]
[1739786990965,3.34,2763.3,2762.9,3.93162]
[1739786991162,3.34,2763.3,2762.9,3.2078]
[1739786991366,0.7238,2763.1,2762.9,3.2078]
[1739786991663,0.72377,2763.2,2762.9,3.2078]
[1739786992062,3.34,2763.3,2762.9,3.2078]
[1739786992264,0.72381,2763.1,2762.9,3.2078]
[1739786992459,23.2768,2763.0,2761.8,0.00543036]
[1739786992770,3.2078,2762.1,2761.8,0.00543036]
[1739786992972,3.343,2762.0,2761.8,0.00543036]
[1739786993666,4.06709,2762.0,2761.8,0.00543036]
[1739786993967,4.06707,2762.0,2761.8,0.00543036]
[1739786994170,3.343,2762.0,2761.8,0.00543036]
[1739786994466,0.7241,2761.9,2761.8,0.00543036]
[1739786994971,3.343,2762.0,2760.9,3.2078]
[1739786995265,3.2078,2761.6,2761.0,7.50561573]
[1739786995467,4.05022,2761.5,2761.0,7.50561573]
[1739786995667,3.326,2761.5,2760.9,8.22996573]
[1739786995862,4.05021,2761.5,2760.9,8.22996573]
[1739786996062,3.326,2761.5,2760.9,7.50561573]
[1739786996273,3.33143036,2761.5,2761.0,0.72433]
[1739786996566,4.05564036,2761.5,2761.1,7.72783662]
[1739786997071,3.93207,2761.3,2760.9,0.00543036]
[1739786997771,3.2078,2761.3,2760.6,3.2078]
[1739786998070,3.2078,2760.7,2759.3,3.7774]
[1739786998267,3.2078,2760.2,2759.3,3.7774]
[1739786998567,3.326,2760.1,2759.8,7.7850778]
[1739786999161,3.326,2760.1,2759.7,0.00870257]
[1739786999361,3.5702,2760.0,2759.7,0.00870257]
[1739787000065,3.2078,2760.0,2759.7,0.00870257]
[1739787000269,3.336,2759.9,2759.7,0.00870257]
[1739787001472,3.328,2759.9,2759.7,0.00870257]
[1739787001678,4.05263,2759.9,2759.7,0.00870257]
[1739787001973,9.328,2759.9,2758.8,3.2078]
[1739787002173,3.2078,2759.6,2759.0,0.72486]
[1739787002371,3.2078,2759.6,2759.1,0.72482]
[1739787002570,3.2078,2759.6,2758.9,7.71141803]
[1739787002771,3.93251,2759.6,2758.8,3.93269]
[1739787002967,3.93251,2759.6,2758.9,7.81452223]
[1739787003171,3.2078,2759.6,2758.9,7.81452223]
[1739787003467,3.342,2759.5,2759.2,0.72481]
[1739787003670,3.342,2759.5,2758.9,7.81452223]
[1739787003876,3.2078,2759.2,2758.2,3.2078]
[1739787004072,3.2078,2759.1,2757.8,3.2078]
[1739787004271,3.2078,2758.6,2757.6,0.5713]
[1739787004567,0.00543036,2758.4,2757.9,7.80144832]
[1739787004774,0.00543036,2758.4,2758.3,0.72505]